fUSD/lending_fUSD_20240503
["ID","MTS","AMOUNT","RATE_DAILY","PERIOD"]
[325320702,1714718771302,-709.71,0.00046575,30]
[325320703,1714718771357,-500.0,0.00046575,30]
[325320704,1714718771618,-501.47,0.00046575,30]
[325320705,1714718771672,-500.0,0.00046575,30]
[325320706,1714718771728,-500.0,0.00046575,30]
[325320707,1714718771784,-500.0,0.00046575,30]
[325320708,1714718771840,-500.0,0.00046575,30]
[325320709,1714718771892,-500.0,0.00046575,30]
[325320710,1714718771947,-978.99,0.00046575,30]
[325320711,1714718772000,-2365.79,0.00046575,30]
[325320712,1714718772054,-521.52,0.00046575,30]
[325320713,1714718772107,-500.0,0.00046575,30]
[325320714,1714718772161,-500.0,0.00046575,30]
[325320715,1714718772218,-2136.86,0.00046575,30]
[325320716,1714718772273,-500.0,0.00046575,30]
[325320717,1714718772327,-500.0,0.00046575,30]
[325320718,1714718772380,-500.0,0.00046575,30]
[325320719,1714718772432,-681.52,0.00046575,30]
[325320720,1714718772486,-500.0,0.00046575,30]
[325320721,1714718772537,-1465.73,0.00046575,30]
[325320722,1714718772593,-500.0,0.00046575,30]
[325320723,1714718772644,-500.0,0.00046575,30]
[325320724,1714718772695,-999.73,0.00046575,30]
[325320725,1714718772746,-1948.66,0.00046575,30]
[325320726,1714718772806,-500.0,0.00046575,30]
[325320727,1714718772856,-284.4274712,0.00046575,30]
[325320728,1714718772907,-517.13782746,0.00046575,30]
[325320729,1714718772959,-644.95,0.00046575,30]
[325320730,1714718773006,-500.0,0.00046575,30]
[325320731,1714718773053,-500.0,0.00046575,30]
[325320732,1714718773109,-500.0,0.00046575,30]
[325320733,1714718773158,-500.0,0.00046575,30]
[325320734,1714718773214,-1613.5,0.00046575,30]
[325320735,1714718773266,-500.0,0.00046575,30]
[325320736,1714718773315,-1946.35,0.00046575,30]
[325320737,1714718773368,-500.0,0.00046575,30]
[325320738,1714718773419,-500.0,0.00046575,30]
[325320739,1714718773473,-500.0,0.00046575,30]
[325320740,1714718773529,-804.52,0.00046575,30]
[325320741,1714718773587,-500.0,0.00046575,30]
[325320742,1714718773645,-500.0,0.00046575,30]
[325320743,1714718773703,-1594.49,0.00046575,30]
[325320744,1714718773757,-500.0,0.00046575,30]
[325320745,1714718773812,-500.0,0.00046575,30]
[325320746,1714718773868,-1715.61,0.00046575,30]
[325320747,1714718773922,-500.0,0.00046575,30]
[325320748,1714718773974,-500.0,0.00046575,30]
[325320749,1714718774027,-500.0,0.00046575,30]
[325320750,1714718774079,-500.0,0.00046575,30]
[325320751,1714718774139,-2272.15,0.00046575,30]
[325320752,1714718774192,-1161.65,0.00046575,30]
[325320753,1714718774244,-500.0,0.00046575,30]
[325320754,1714718774298,-500.0,0.00046575,30]
[325320755,1714718774354,-500.0,0.00046575,30]
[325320756,1714718774407,-500.0,0.00046575,30]
[325320757,1714718774459,-500.0,0.00046575,30]
[325320758,1714718774512,-500.0,0.00046575,30]
[325320759,1714718774563,-500.0,0.00046575,30]
[325320760,1714718774618,-500.0,0.00046575,30]
[325320761,1714718774673,-1470.91,0.00046575,30]
[325320762,1714718774728,-500.0,0.00046575,30]
[325320763,1714718774779,-1290.72,0.00046575,30]
[325320764,1714718774830,-500.0,0.00046575,30]
[325320765,1714718774883,-501.32208115,0.00046575,30]
[325320766,1714718774935,-670.2,0.00046575,30]
[325320767,1714718774990,-519.33862495,0.00046575,30]
[325320768,1714718775044,-500.0,0.00046575,30]
[325320769,1714718775095,-500.0,0.00046575,30]
[325320770,1714718775151,-500.0,0.00046575,30]
[325320771,1714718775203,-500.0,0.00046575,30]
[325320772,1714718775259,-500.0,0.00046575,30]
[325320773,1714718775311,-756.29,0.00046575,30]
[325320774,1714718775363,-500.0,0.00046575,30]
[325320775,1714718775416,-500.0,0.00046575,30]
[325320776,1714718775468,-500.0,0.00046575,30]
[325320777,1714718775521,-522.71125279,0.00046575,30]
[325320778,1714718775577,-500.0,0.00046575,30]
[325320779,1714718775632,-500.0,0.00046575,30]
[325320780,1714718775683,-2608.89,0.00046575,30]
[325320781,1714718775736,-500.0,0.00046575,30]
[325320782,1714718775792,-667.03,0.00046575,30]
[325320783,1714718775845,-500.0,0.00046575,30]
[325320784,1714718775895,-500.0,0.00046575,30]
[325320785,1714718775948,-500.0,0.00046575,30]
[325320786,1714718776002,-500.0,0.00046575,30]
[325320787,1714718776052,-500.0,0.00046575,30]
[325320788,1714718776105,-500.0,0.00046575,30]
[325320789,1714718776159,-501.34466708,0.00046575,30]
[325320790,1714718776219,-500.0,0.00046575,30]
[325320791,1714718776283,-500.0,0.00046575,30]
[325320792,1714718776344,-500.0,0.00046575,30]
[325320793,1714718776400,-500.0,0.00046575,30]
[325320794,1714718776452,-729.74,0.00046575,30]
[325320795,1714718776506,-500.0,0.00046575,30]
[325320796,1714718776559,-500.0,0.00046575,30]
[325320797,1714718776612,-500.0,0.00046575,30]
[325320798,1714718776664,-500.0,0.00046575,30]
[325320799,1714718776717,-500.0,0.00046575,30]
[325320800,1714718776769,-625.09,0.00046575,30]
[325320801,1714718776820,-3743.9,0.00046575,30]
[325320802,1714718776872,-500.0,0.00046575,30]
[325320803,1714718776925,-500.0,0.00046575,30]
[325320804,1714718776973,-498.86825002,0.00046575,30]
[325320805,1714718777026,-1235.93,0.00046575,30]
[325320806,1714718777079,-2006.54,0.00046575,30]
[325320807,1714718777130,-500.0,0.00046575,30]
[325320808,1714718777476,-1808.42,0.00046575,30]
[325320809,1714718777529,-742.66,0.00046575,30]
[325320810,1714718777578,-500.0,0.00046575,30]
[325320811,1714718777629,-570.18,0.00046575,30]
[325320812,1714718777681,-954.01,0.00046575,30]
[325320813,1714718777730,-805.17,0.00046575,30]
[325320814,1714718777786,-500.0,0.00046575,30]
[325320815,1714718777836,-182.62813064,0.00046575,30]
[325320816,1714718777884,-500.0,0.00046575,30]
[325320817,1714718777931,-726.36,0.00046575,30]
[325320818,1714718777979,-1786.55,0.00046575,30]
[325320819,1714718778026,-500.0,0.00046575,30]
[325320820,1714718778071,-500.0,0.00046575,30]
[325320821,1714718778120,-500.0,0.00046575,30]
[325320822,1714718778175,-500.0,0.00046575,30]
[325320823,1714718778223,-500.0,0.00046575,30]
[325320824,1714718778275,-539.86631363,0.00046575,30]
[325320825,1714718778325,-500.0,0.00046575,30]
[325320826,1714718778371,-500.0,0.00046575,30]
[325320827,1714718778420,-502.33739822,0.00046575,30]
[325320828,1714718778473,-500.0,0.00046575,30]
[325320829,1714718778522,-756.21,0.00046575,30]
[325320830,1714718778571,-1779.64,0.00046575,30]
[325320831,1714718778620,-1334.77,0.00046575,30]
[325320832,1714718778672,-962.28,0.00046575,30]
[325320833,1714718778723,-500.41825727,0.00046575,30]
[325320834,1714718778777,-500.0,0.00046575,30]
[325320835,1714718778830,-2903.94,0.00046575,30]
[325320836,1714718778883,-500.0,0.00046575,30]
[325320837,1714718778937,-500.0,0.00046575,30]
[325320838,1714718778991,-1660.13,0.00046575,30]
[325320839,1714718779040,-500.0,0.00046575,30]
[325320840,1714718779092,-500.0,0.00046575,30]
[325320841,1714718779154,-501.62929266,0.00046575,30]
[325320842,1714718779205,-500.34964602,0.00046575,30]
[325320843,1714718779263,-1611.78,0.00046575,30]
[325320844,1714718779317,-500.0,0.00046575,30]
[325320845,1714718779373,-797.5,0.00046575,30]
[325320846,1714718779430,-504.91,0.00046575,30]
[325320847,1714718779487,-500.0,0.00046575,30]
[325320848,1714718779544,-1667.55,0.00046575,30]
[325320849,1714718779598,-500.0,0.00046575,30]
[325320850,1714718779656,-501.54013823,0.00046575,30]
[325320851,1714718779714,-754.15,0.00046575,30]
[325320852,1714718779770,-778.34,0.00046575,30]
[325320853,1714718779822,-500.0,0.00046575,30]
[325320854,1714718779875,-1266.18,0.00046575,30]
[325320855,1714718779932,-500.0,0.00046575,30]
[325320856,1714718779985,-520.82602856,0.00046575,30]
[325320857,1714718780046,-1076.3,0.00046575,30]
[325320858,1714718780106,-500.0,0.00046575,30]
[325320859,1714718780165,-1707.65,0.00046575,30]
[325320860,1714718780219,-1135.5,0.00046575,30]
[325320861,1714718780273,-500.0,0.00046575,30]
[325320862,1714718780327,-500.0,0.00046575,30]
[325320863,1714718780378,-585.69,0.00046575,30]
[325320864,1714718780432,-842.24,0.00046575,30]
[325320865,1714718780484,-500.0,0.00046575,30]
[325320866,1714718780539,-504.15744964,0.00046575,30]
[325320867,1714718780595,-697.47,0.00046575,30]
[325320868,1714718780650,-712.85,0.00046575,30]
[325320869,1714718780702,-500.0,0.00046575,30]
[325320870,1714718780754,-500.0,0.00046575,30]
[325320871,1714718780809,-500.0,0.00046575,30]
[325320872,1714718780860,-500.65708264,0.00046575,30]
[325320873,1714718780912,-500.0,0.00046575,30]
[325320874,1714718780965,-500.0,0.00046575,30]
[325320875,1714718781017,-500.0,0.00046575,30]
[325320876,1714718781072,-500.0,0.00046575,30]
[325320877,1714718781128,-1319.77,0.00046575,30]
[325320878,1714718781181,-1534.93,0.00046575,30]
[325320879,1714718781235,-1424.21,0.00046575,30]
[325320880,1714718781287,-523.74534433,0.00046575,30]
[325320881,1714718781339,-2179.82,0.00046575,30]
[325320882,1714718781391,-654.36,0.00046575,30]
[325320883,1714718781444,-529.2,0.00046575,30]
[325320884,1714718781497,-500.0,0.00046575,30]
[325320885,1714718781548,-500.0,0.00046575,30]
[325320886,1714718781608,-500.0,0.00046575,30]
[325320887,1714718781663,-500.0,0.00046575,30]
[325320888,1714718781718,-500.0,0.00046575,30]
[325320889,1714718781773,-718.13,0.00046575,30]
[325320890,1714718781826,-500.0,0.00046575,30]
[325320891,1714718781880,-500.0,0.00046575,30]
[325320892,1714718781935,-502.36303706,0.00046575,30]
[325320893,1714718781989,-1008.11,0.00046575,30]
[325320894,1714718782042,-872.78,0.00046575,30]
[325320895,1714718782097,-1148.34,0.00046575,30]
[325320896,1714718782152,-602.96,0.00046575,30]
[325320897,1714718782208,-590.8,0.00046575,30]
[325320898,1714718782263,-671.88,0.00046575,30]
[325320899,1714718782316,-500.0,0.00046575,30]
[325320900,1714718782366,-1812.06,0.00046575,30]
[325320901,1714718782418,-272.25211422,0.00046575,30]
[325320902,1714718782467,-500.0,0.00046575,30]
[325320903,1714718782516,-500.0,0.00046575,30]
[325320904,1714718782564,-1007.19,0.00046575,30]
[325320905,1714718782612,-912.34,0.00046575,30]
[325320906,1714718782664,-500.0,0.00046575,30]
[325320907,1714718782712,-500.0,0.00046575,30]
[325320908,1714718782764,-659.78,0.00046575,30]
[325320909,1714718782815,-659.78,0.00046575,31]
[325320910,1714718782864,-659.78,0.00046575,32]
[325320911,1714718782914,-659.78,0.00046575,33]
[325320912,1714718783201,-659.78,0.00046575,34]
[325320913,1714718783250,-946.79,0.00046575,30]
[325320914,1714718783299,-500.0,0.00046575,30]
[325320915,1714718783350,-659.78,0.00046575,35]
[325320916,1714718783399,-659.78,0.00046575,36]
[325320917,1714718783460,-500.0,0.00046575,30]
[325320918,1714718783520,-397.52971943,0.00046575,30]
[325320919,1714718783578,-659.78,0.00046575,37]
[325320920,1714718783633,-659.78,0.00046575,38]
[325320921,1714718783686,-659.78,0.00046575,39]
[325320922,1714718783739,-659.78,0.00046575,40]
[325320923,1714718783793,-704.37,0.00046575,30]
[325320924,1714718783844,-500.0,0.00046575,30]
[325320925,1714718783893,-732.95,0.00046575,30]
[325320926,1714718783946,-659.78,0.00046575,41]
[325320927,1714718784000,-659.78,0.00046575,42]
[325320928,1714718784051,-659.78,0.00046575,43]
[325320929,1714718784103,-659.78,0.00046575,44]
[325320930,1714718784158,-659.78,0.00046575,45]
[325320931,1714718784208,-1763.4,0.00046575,30]
[325320932,1714718784258,-659.78,0.00046575,46]
[325320933,1714718784309,-659.78,0.00046575,47]
[325320934,1714718784361,-659.78,0.00046575,48]
[325320935,1714718784412,-659.78,0.00046575,49]
[325320936,1714718784466,-659.78,0.00046575,49]
[325320937,1714718784520,-659.78,0.00046575,49]
[325320938,1714718784572,-659.78,0.00046575,49]
[325320939,1714718784627,-660.01335522,0.00046575,49]
[325320940,1714718784682,-503.03814046,0.00046575,30]
[325320941,1714718784736,-500.0,0.00046575,30]
[325320942,1714718784788,-823.63,0.00046575,30]
[325320943,1714718784840,-758.96,0.00046575,30]
[325320944,1714718784895,-1057.75,0.00046575,30]
[325320945,1714718784949,-440.11197202,0.00046575,30]
[325320982,1714719031988,-538.51236108,0.00010991,2]
[325320983,1714719031998,-118.73763892,0.00010992,2]
[325320984,1714719032010,-623.17277901,0.00010992,2]
[325320986,1714719032022,-39.62546475,0.00010992,2]
[325320988,1714719032032,-150.0,0.00010993,2]
[325320990,1714719032042,-150.0,0.00010993,2]
[325320992,1714719032052,-4115.67404376,0.00011,2]
[325320994,1714719032062,-1739.16008259,0.00011,2]
[325320996,1714719032071,-12666.8213,0.00011641,2]
[325320998,1714719032081,-150.0,0.00011726,2]
[325321000,1714719032091,-2326.17057873,0.00011741,2]
[325321002,1714719032100,-369.85413925,0.00011742,2]
[325321004,1714719032110,-210.0,0.00012092,2]
[325321006,1714719032120,-364.13980716,0.00017256,2]
[325321007,1714719032130,-236.65157251,0.00017257,2]
[325321008,1714719032141,-314.73,0.00017257,2]
[325321009,1714719032151,-150.99,0.00017257,2]
[325321010,1714719032161,-749.08331599,0.00017258,2]
[325321011,1714719032171,-499.99,0.00017534,2]
[325321012,1714719032188,-1844.1,0.00017808,2]
[325321013,1714719032198,-175.66,0.00018236,2]
[325321014,1714719032208,-8531.6331087,0.0002,2]
[325321015,1714719032219,-573.0,0.000204,2]
[325321016,1714719032231,-155.0,0.000209,2]
[325321017,1714719032242,-2212.56597326,0.00021,2]
[325321018,1714719032251,-155.3616826,0.00022143,2]
[325321019,1714719032263,-154.51082581,0.00022324,2]
[325321020,1714719032274,-159.88046271,0.00022406,2]
[325321021,1714719032284,-250.0,0.00022457,2]
[325321022,1714719032294,-150.0,0.00022485,2]
[325321023,1714719032305,-154.66331787,0.00022519,2]
[325321030,1714719032435,-500.0,0.00022536,2]
[325321032,1714719032445,-153.52,0.00022542,2]
[325321034,1714719032454,-169.593638,0.000226,2]
[325321036,1714719032463,-154.51082581,0.00022612,2]
[325321038,1714719032472,-23900.0,0.0002264,2]
[325321040,1714719032482,-1468.91,0.00022743,2]
[325321042,1714719032492,-154.51082581,0.00022768,2]
[325321044,1714719032503,-200.0,0.0002278,2]
[325321046,1714719032513,-250.0,0.00022788,2]
[325321048,1714719032522,-159.88046271,0.00022789,2]
[325321050,1714719032532,-287.83998002,0.00022859,2]
[325321052,1714719032542,-287.83998002,0.00022884,2]
[325321054,1714719032552,-287.83998002,0.00022913,2]
[325321056,1714719032561,-155.97314994,0.00022948,2]
[325321058,1714719032571,-1024.2,0.0002312,2]
[325321060,1714719032580,-1000.0,0.00023259,2]
[325321062,1714719032589,-154.51082581,0.00023328,2]
[325321064,1714719032598,-191.65,0.00023386,2]
[325321066,1714719032608,-154.18248667,0.00023432,2]
[325321068,1714719032618,-151.9,0.0002347,2]
[325321070,1714719032629,-155.45369754,0.00023499,2]
[325321072,1714719032640,-161.7,0.00023582,2]
[325321074,1714719032649,-155.3616826,0.00023608,2]
[325321076,1714719032658,-155.45369754,0.00023693,2]
[325321078,1714719032668,-152.85,0.00023747,2]
[325321080,1714719032678,-152.85,0.00023759,2]
[325321083,1714719032688,-152.85,0.00023771,2]
[325321084,1714719032697,-152.85,0.00023783,2]
[325321086,1714719032707,-152.85,0.00023794,2]
[325321088,1714719032716,-152.85,0.00023806,2]
[325321090,1714719032726,-152.85,0.00023818,2]
[325321093,1714719032735,-152.85,0.0002383,2]
[325321094,1714719032745,-152.85,0.00023842,2]
[325321097,1714719032754,-152.85,0.00023854,2]
[325321099,1714719032765,-152.85,0.00023866,2]
[325321100,1714719032776,-155.3616826,0.00024013,2]
[325321102,1714719032786,-287.83998002,0.00024022,2]
[325321105,1714719032795,-159.88046271,0.00024025,2]
[325321106,1714719032804,-155.45369754,0.00024055,2]
[325321109,1714719032814,-154.18248667,0.00024092,2]
[325321111,1714719032823,-154.18248667,0.000241,2]
[325321112,1714719032833,-154.51082581,0.00024101,2]
[325321114,1714719032843,-154.66331787,0.00024167,2]
[325321117,1714719032853,-153.72003342,0.0002443,2]
[325321118,1714719032864,-154.17335258,0.00024496,2]
[325321120,1714719032875,-155.3616826,0.00024553,2]
[325321123,1714719032884,-1228.0,0.00024641,2]
[325321124,1714719032894,-154.17335258,0.00024752,2]
[325321125,1714719032904,-287.83998002,0.00024925,2]
[325321126,1714719032913,-150.0,0.00025,2]
[325321127,1714719032923,-166.66666666,0.00025055,2]
[325321128,1714719032932,-150.0,0.000251,2]
[325321129,1714719032941,-159.88046271,0.00025362,2]
[325321130,1714719032950,-154.51082581,0.00025371,2]
[325321131,1714719032960,-154.66331787,0.00025396,2]
[325321132,1714719032970,-155.45369754,0.00025403,2]
[325321133,1714719032980,-154.17335258,0.00025415,2]
[325321134,1714719032989,-200.0,0.00025435,2]
[325321135,1714719032999,-158.8767796,0.00025438,2]
[325321136,1714719033009,-154.66331787,0.00025538,2]
[325321137,1714719033019,-3168.41548277,0.00025648,2]
[325321138,1714719033029,-155.97314994,0.00025651,2]
[325321139,1714719033038,-352.0,0.000257,2]
[325321140,1714719033048,-1093.53,0.00025786,2]
[325321141,1714719033057,-10485.84,0.00025786,2]
[325321142,1714719033067,-169.59363801,0.00025803,2]
[325321143,1714719033076,-155.97314994,0.00025881,2]
[325321144,1714719033086,-287.83998002,0.00025918,2]
[325321145,1714719033095,-287.83998002,0.00025955,2]
[325321146,1714719033105,-854.8528162,0.00025985,2]
[325321147,1714719033115,-479.47666845,0.00025998,2]
[325321148,1714719033125,-300.97942218,0.00025998,2]
[325321149,1714719033135,-781.96889708,0.00025999,2]
[325321150,1714719033145,-36137.616875,0.00026,2]
[325321151,1714719033154,-155.45369754,0.00026067,2]
[325321152,1714719033163,-155.97314994,0.00026147,2]
[325321153,1714719033172,-1000.0,0.00026166,2]
[325321154,1714719033190,-154.66331787,0.0002618,2]
[325321155,1714719033200,-154.66331787,0.00026186,2]
[325321156,1714719033209,-154.51082581,0.00026277,2]
[325321157,1714719033219,-155.45369754,0.00026289,2]
[325321158,1714719033234,-181.7,0.00026301,2]
[325321159,1714719033244,-150.0,0.00026301,2]
[325321160,1714719033253,-150.0,0.00026301,2]
[325321161,1714719033264,-155.45369754,0.00026364,2]
[325321162,1714719033274,-287.83998002,0.00026398,2]
[325321163,1714719033284,-155.3616826,0.00026439,2]
[325321164,1714719033293,-287.83998002,0.00026462,2]
[325321165,1714719033303,-152.14,0.00026472,2]
[325321166,1714719033312,-179.98798159,0.00026492,8]
[325321167,1714719033322,-155.45369754,0.00026634,2]
[325321168,1714719033332,-178.90102031,0.00026693,2]
[325321169,1714719033342,-155.74289762,0.00026707,2]
[325321170,1714719033352,-168.22068823,0.00026757,2]
[325321171,1714719033361,-154.17335258,0.00026768,2]
[325321172,1714719033372,-154.66331787,0.00026775,2]
[325321173,1714719033381,-159.68159198,0.00026783,2]
[325321174,1714719033391,-155.3616826,0.00026827,2]
[325321175,1714719033400,-675.2489,0.00026897,2]
[325321176,1714719033410,-563.0,0.00026898,2]
[325321177,1714719033419,-8247.4113,0.00026898,2]
[325321178,1714719033430,-906.5228,0.00026898,2]
[325321179,1714719033440,-5459.9117,0.00026898,2]
[325321180,1714719033449,-500.0,0.00026899,2]
[325321181,1714719033459,-652.9,0.000269,2]
[325321182,1714719033468,-197.92822467,0.000269,2]
[325321183,1714719033477,-484.0,0.000269,10]
[325321184,1714719033486,-342.0,0.000269,2]
[325321185,1714719033496,-166.0410183,0.000269,2]
[325321186,1714719033505,-151.87422436,0.000269,2]
[325321187,1714719033514,-443.4544,0.000269,2]
[325321188,1714719033523,-150.0,0.000269,5]
[325321189,1714719033533,-784.12424069,0.0002692,2]
[325321190,1714719033542,-202.16514885,0.0002692,2]
[325321191,1714719033552,-155.30553432,0.0002692,2]
[325321192,1714719033561,-945.85426494,0.00026921,3]
[325321193,1714719033572,-155.0,0.00026996,2]
[325321194,1714719033582,-274.44698603,0.00026996,2]
[325321195,1714719033593,-5000.0,0.00026997,2]
[325321196,1714719033602,-2013.4,0.00026997,2]
[325321197,1714719033611,-2013.4,0.00026997,2]
[325321198,1714719033622,-208.24254243,0.00026998,2]
[325321199,1714719033631,-4416.37705959,0.00026998,2]
[325321200,1714719033640,-3504.88707319,0.00026998,2]
[325321201,1714719033651,-787.4924494,0.00026998,2]
[325321202,1714719033660,-298641.39192744,0.00026998,2]
[325321203,1714719033697,-1420.60372831,0.00026998,2]
[325321204,1714719033709,-833.36001832,0.00026998,2]
[325321205,1714719033720,-537.12016184,0.00026998,2]
[325321206,1714719033733,-2815.80071661,0.00026998,2]
[325321207,1714719033769,-32772.68998321,0.00026998,2]
[325321208,1714719033781,-1652.31001679,0.00026998,2]
[325321209,1714719033792,-705.76,0.00026998,2]
[325321210,1714719033804,-2207.21925064,0.00026998,2]
[325321216,1714719038095,-583.46946841,0.000257,2]
[325321217,1714719038174,-416.53053159,0.000257,2]
[325321218,1714719038190,-308.044,0.000269,2]
[325321219,1714719038199,-766.20106841,0.00026998,2]
[325321220,1714719038210,-568.59559293,0.00026998,2]
[325321221,1714719038274,-1229.7413409,0.00026998,2]
[325321222,1714719038285,-275.96458678,0.00026998,2]
[325321223,1714719038407,-2475.66949071,0.00026998,2]
[325321224,1714719038420,-3499.8,0.00026998,2]
[325321225,1714719038440,-6563.34065266,0.00026998,2]
[325321226,1714719038451,-362.26956143,0.00026998,2]
[325321227,1714719038462,-328.92787868,0.00026998,2]
[325321230,1714719040527,-270.14,0.00026988,2]
[325321231,1714719040537,-270.14,0.00026988,2]
[325321232,1714719040547,-7625.52375038,0.00026998,2]
[325321233,1714719040558,-568.37329392,0.00026998,2]
[325321234,1714719040591,-911.56523904,0.00026998,2]
[325321235,1714719040602,-59840.11816544,0.00026998,2]
[325321236,1714719040612,-35267.57312085,0.00026998,2]
[325321237,1714719040621,-1000.0,0.00026998,2]
[325321238,1714719040632,-2013.4,0.00026999,2]
[325321239,1714719040641,-2013.4,0.00026999,2]
[325321240,1714719040650,-2013.4,0.00026999,2]
[325321241,1714719040660,-2013.4,0.00026999,2]
[325321242,1714719040669,-2013.4,0.00026999,2]
[325321243,1714719040679,-888.0,0.00026999,2]
[325321244,1714719040688,-4841.6783953,0.00027,2]
[325321245,1714719040698,-7036.49891379,0.00027,5]
[325321246,1714719040729,-260.21618838,0.00026988,2]
[325321247,1714719040743,-9.92381162,0.00026988,2]
[325321248,1714719040752,-5602.97047802,0.00027,5]
[325321249,1714719040767,-1811.24191971,0.00027,5]
[325321250,1714719040779,-1928.1375,0.00027,5]
[325321251,1714719040790,-807.50002,0.00027,5]
[325321252,1714719040830,-700.0,0.00027,5]
[325321263,1714719043086,-270.14,0.00026988,2]
[325321265,1714719043095,-270.14,0.00026988,2]
[325321266,1714719043105,-8005.79201388,0.00027,5]
[325321273,1714719043238,-867.11870689,0.00027,5]
[325321280,1714719044177,-880.21195323,0.00027,5]
[325321281,1714719044248,-24114.26977452,0.00027,5]
[325321282,1714719044294,-1786.11,0.00027,5]
[325321314,1714719046106,-150.0,0.00024649,2]
[325321316,1714719046116,-887.75000045,0.00026999,2]
[325321318,1714719046125,-364.13980716,0.00026999,2]
[325321320,1714719046135,-826.11745518,0.00027,5]
[325321322,1714719046146,-255.637,0.00027,5]
[325321325,1714719046159,-7016.38830538,0.00027,5]
[325321327,1714719046170,-26612.50580397,0.00027,5]
[325321336,1714719046252,-2634.58029434,0.00027,5]
[325321338,1714719046264,-453.32000598,0.00027,5]
[325321354,1714719046412,-2450.9403,0.00027,5]
[325321356,1714719046425,-2460.98823099,0.00027,5]
[325321405,1714719991024,150.2846677,0.00010311,2]
[325321417,1714720107987,-781.53588268,0.00010799,2]
[325321418,1714720108012,-157.97636738,0.000109,2]
[325321419,1714720108032,-14060.48774994,0.00011,2]
[325321421,1714720150604,-1249.00424874,0.00011,2]
[325321451,1714720172539,-546.046697,0.00012248,2]
[325321452,1714720172561,-303.64305285,0.00012348,2]
[325321453,1714720172584,-1251.27923852,0.000129,2]
[325321454,1714720172605,-1251.27923852,0.000129,2]
[325321455,1714720172630,-479.47666845,0.00012998,2]
[325321456,1714720172651,-781.53588268,0.00012999,2]
[325321457,1714720172676,-44137.73497324,0.00013,2]
[325321463,1714720232957,-1451.19349998,0.00013,2]
[325321464,1714720232970,-329.61820133,0.00013,2]
[325321465,1714720233093,-753.98701703,0.00013,2]
[325321466,1714720233104,-3643.18820923,0.00013,2]
[325321467,1714720233116,-500.0,0.00013,2]
[325321468,1714720233247,-117.17465,0.00013,2]
[325321469,1714720233279,-3321.48247867,0.00013,2]
[325321470,1714720233291,-137928.64784553,0.00013,2]
[325321471,1714720233301,-21412.77209129,0.00013,2]
[325321472,1714720233310,-157.97636736,0.00016233,2]
[325321473,1714720233320,-499.99,0.0001726,2]
[325321474,1714720233329,-178.90102031,0.0001788,2]
[325321475,1714720233339,-450.0,0.00018,3]
[325321476,1714720233348,-500.0,0.0002,3]
[325321477,1714720233359,-2608.0,0.000206,2]
[325321478,1714720233369,-155.0,0.000209,2]
[325321479,1714720233378,-157.97636736,0.00021567,2]
[325321480,1714720233390,-245.95,0.00021644,2]
[325321481,1714720233400,-20031.0096381,0.00022,2]
[325321482,1714720233410,-550.0,0.00022,3]
[325321483,1714720233420,-153.72003342,0.00022122,2]
[325321484,1714720233430,-155.45369754,0.00022158,2]
[325321485,1714720233439,-155.45369754,0.00022483,2]
[325321486,1714720233448,-153.72003342,0.00022496,2]
[325321487,1714720233457,-155.45369754,0.00022509,2]
[325321488,1714720233466,-159.88046271,0.00022624,2]